fUST/lending_fUST_20240127
["ID","MTS","AMOUNT","RATE_DAILY","PERIOD"]
[312842089,1706335843543,-500.0,0.00030136,2]
[312842090,1706335843552,-602.15083387,0.00030136,2]
[312842091,1706335843630,-500.0,0.00030136,2]
[312842092,1706335843640,-500.0,0.00030136,2]
[312842093,1706335843651,-1101.19,0.00030136,2]
[312842094,1706335843660,-512.67846685,0.00030136,2]
[312842095,1706335843671,-500.0,0.00030136,2]
[312842096,1706335843682,-500.0,0.00030136,2]
[312842097,1706335843693,-500.0,0.00030136,2]
[312842098,1706335843702,-500.0,0.00030136,2]
[312842099,1706335843713,-914.51,0.00030136,2]
[312842100,1706335843722,-4513.14,0.00030136,2]
[312842101,1706335843734,-505.00824346,0.00030136,2]
[312842102,1706335843745,-1934.31,0.00030136,2]
[312842103,1706335843755,-500.0,0.00030136,2]
[312842104,1706335843764,-500.0,0.00030136,2]
[312842105,1706335843773,-500.0,0.00030136,2]
[312842106,1706335843782,-500.0,0.00030136,2]
[312842107,1706335843792,-500.0,0.00030136,2]
[312842108,1706335843800,-227.99225409,0.00030136,2]
[312842109,1706335843809,-500.0,0.00030136,2]
[312842110,1706335843819,-500.0,0.00030136,2]
[312842111,1706335843829,-2686.34,0.00030136,2]
[312842112,1706335843839,-500.0,0.00030136,2]
[312842113,1706335843849,-869.85,0.00030136,2]
[312842114,1706335843859,-1563.68,0.00030136,2]
[312842115,1706335843870,-500.0,0.00030136,2]
[312842116,1706335843879,-3547.78,0.00030136,2]
[312842117,1706335843889,-500.0,0.00030136,2]
[312842118,1706335843900,-439.77227346,0.00030136,2]
[312842119,1706335843909,-500.0,0.00030136,2]
[312842120,1706335843918,-500.0,0.00030136,2]
[312842121,1706335843928,-629.56716378,0.00030136,2]
[312842122,1706335843937,-500.0,0.00030136,2]
[312842123,1706335843947,-13293.91,0.00030136,2]
[312842124,1706335843956,-151.0,0.00030136,2]
[312842125,1706335843966,-151.0,0.00030136,2]
[312842126,1706335843975,-151.0,0.00030136,2]
[312842127,1706335843984,-151.0,0.00030136,2]
[312842128,1706335843993,-151.0,0.00030136,2]
[312842129,1706335844006,-151.0,0.00030136,2]
[312842130,1706335844015,-500.0,0.00030136,2]
[312842131,1706335844024,-502.96,0.00030136,2]
[312842132,1706335844034,-502.44464583,0.00030136,2]
[312842133,1706335844043,-151.0,0.00030136,2]
[312842134,1706335844053,-151.0,0.00030136,2]
[312842135,1706335844062,-151.0,0.00030136,2]
[312842136,1706335844072,-493.127102,0.00030136,2]
[312842137,1706335844083,-163.596798,0.00030136,2]
[312842138,1706335844093,-493.127102,0.00030136,2]
[312842139,1706335844102,-493.127102,0.00030136,2]
[312842140,1706335844112,-493.127102,0.00030136,2]
[312842141,1706335844121,-493.127102,0.00030136,2]
[312842142,1706335844130,-493.127102,0.00030136,2]
[312842143,1706335844139,-493.127102,0.00030136,2]
[312842144,1706335844149,-493.127102,0.00030136,2]
[312842145,1706335844158,-493.127102,0.00030136,2]
[312842146,1706335844167,-493.127102,0.00030136,2]
[312842147,1706335844176,-493.127102,0.00030136,2]
[312842148,1706335844186,-493.127093,0.00030136,2]
[312842149,1706335844195,-4621.49,0.00030136,2]
[312842150,1706335844204,-530.15,0.00030136,2]
[312842151,1706335844213,-2682.25,0.00030136,2]
[312842152,1706335844222,-500.0,0.00030136,2]
[312842153,1706335844231,-500.0,0.00030136,2]
[312842154,1706335844240,-500.0,0.00030136,2]
[312842155,1706335844250,-202.04558531,0.00030136,2]
[312842156,1706335844259,-3389.26,0.00030136,2]
[312842157,1706335844268,-500.0,0.00030136,2]
[312842158,1706335844278,-5092.39,0.00030136,2]
[312842159,1706335844286,-390.72689317,0.00030136,2]
[312842160,1706335844296,-785.38,0.00030136,2]
[312842161,1706335844305,-740.595581,0.00030136,2]
[312842162,1706335844314,-740.595581,0.00030136,2]
[312842163,1706335844323,-740.595581,0.00030136,2]
[312842164,1706335844332,-740.595581,0.00030136,2]
[312842165,1706335844342,-740.595581,0.00030136,2]
[312842166,1706335844351,-528.25,0.00030136,2]
[312842167,1706335844360,-740.595581,0.00030136,2]
[312842168,1706335844369,-500.0,0.00030136,2]
[312842169,1706335844379,-740.595581,0.00030136,2]
[312842170,1706335844388,-740.595581,0.00030136,2]
[312842171,1706335844398,-740.595581,0.00030136,2]
[312842172,1706335844407,-740.595581,0.00030136,2]
[312842173,1706335844417,-740.595581,0.00030136,2]
[312842174,1706335844426,-740.595589,0.00030136,2]
[312842175,1706335844435,-500.0,0.00030136,2]
[312842176,1706335844444,-823.04,0.00030136,2]
[312842177,1706335844454,-632.83287938,0.00030136,2]
[312842178,1706335844463,-640.28,0.00030136,2]
[312842179,1706335844472,-500.0,0.00030136,2]
[312842180,1706335844481,-49232.72,0.00030136,2]
[312842181,1706335844490,-500.0,0.00030136,2]
[312842182,1706335844500,-1455.31,0.00030136,2]
[312842183,1706335844509,-500.0,0.00030136,2]
[312842184,1706335844518,-500.0,0.00030136,2]
[312842185,1706335844527,-500.0,0.00030136,2]
[312842186,1706335844536,-28542.94,0.00030136,2]
[312842187,1706335844545,-10808.43,0.00030136,2]
[312842188,1706335844554,-500.0,0.00030136,2]
[312842189,1706335844563,-663.39,0.00030136,2]
[312842190,1706335844572,-514.56705556,0.00030136,2]
[312842191,1706335844581,-500.0,0.00030136,2]
[312842192,1706335844590,-500.0,0.00030136,5]
[312842193,1706335844600,-514.16694812,0.00030136,2]
[312842194,1706335844609,-2385.06,0.00030136,2]
[312842195,1706335844618,-1000.0,0.00030136,2]
[312842196,1706335844627,-214.89824531,0.00030136,2]
[312842197,1706335844637,-500.0,0.00030136,2]
[312842198,1706335844646,-500.0,0.00030136,2]
[312842199,1706335844655,-500.0,0.00030136,2]
[312842200,1706335844664,-503.43,0.00030136,2]
[312842201,1706335844674,-500.0,0.00030136,2]
[312842202,1706335844683,-500.0,0.00030136,2]
[312842203,1706335844692,-500.0,0.00030136,2]
[312842204,1706335844701,-346.77598873,0.00030136,2]
[312842205,1706335844710,-1093.25,0.00030136,2]
[312842206,1706335844719,-500.0,0.00030136,2]
[312842207,1706335844728,-500.0,0.00030136,2]
[312842208,1706335844737,-2217.09,0.00030136,2]
[312842209,1706335844746,-500.0,0.00030136,2]
[312842210,1706335844755,-500.0,0.00030136,2]
[312842211,1706335844764,-2209.77,0.00030136,2]
[312842212,1706335844774,-500.0,0.00030136,2]
[312842213,1706335844783,-500.0,0.00030136,2]
[312842214,1706335844792,-500.0,0.00030136,2]
[312842215,1706335844801,-500.0,0.00030136,2]
[312842216,1706335844810,-500.0,0.00030136,2]
[312842217,1706335844818,-500.0,0.00030136,2]
[312842218,1706335844827,-500.0,0.00030136,2]
[312842219,1706335844836,-500.0,0.00030136,2]
[312842220,1706335844846,-443.89490686,0.00030136,2]
[312842221,1706335844855,-500.0,0.00030136,2]
[312842222,1706335844864,-500.0,0.00030136,2]
[312842223,1706335844873,-500.0,0.00030136,2]
[312842224,1706335844882,-15332.89,0.00030136,2]
[312842225,1706335844891,-352.18267138,0.00030136,2]
[312842226,1706335844901,-557.55,0.00030136,2]
[312842227,1706335844910,-500.0,0.00030136,2]
[312842228,1706335844920,-10877.36,0.00030136,2]
[312842229,1706335844929,-511.027871,0.00030136,2]
[312842230,1706335844938,-500.0,0.00030136,2]
[312842231,1706335844947,-485.19778806,0.00030136,2]
[312842232,1706335844957,-14236.71,0.00030136,2]
[312842233,1706335844966,-5977.79,0.00030136,2]
[312842234,1706335844975,-500.00001824,0.00030136,2]
[312842235,1706335844985,-39646.59213709,0.00030136,2]
[312842236,1706335845178,-39.43786291,0.00030136,2]
[312842237,1706335845187,-648.31362358,0.00030136,2]
[312842238,1706335845196,-825.93,0.00030136,2]
[312842239,1706335845205,-2821.39,0.00030136,2]
[312842240,1706335845215,-500.0,0.00030136,2]
[312842241,1706335845224,-500.0,0.00030136,2]
[312842242,1706335845234,-1000.0,0.00030136,2]
[312842243,1706335845243,-1388.78,0.00030136,2]
[312842244,1706335845253,-985.99,0.00030136,2]
[312842245,1706335845261,-502.88827405,0.00030136,2]
[312842246,1706335845270,-990.11976234,0.00030136,2]
[312842247,1706335845282,-312.30187527,0.00030136,2]
[312842248,1706335845645,-500.0,0.0002858,2]
[312842249,1706335845655,-500.0,0.0002858,2]
[312842250,1706335845664,-500.0,0.0002858,2]
[312842251,1706335845674,-479.09136983,0.0002858,2]
[312842252,1706335845686,-20.90863017,0.0002858,2]
[312842253,1706335845696,-500.0,0.0002858,2]
[312842254,1706335845705,-500.0,0.0002858,2]
[312842255,1706335845714,-500.0,0.0002858,2]
[312842256,1706335845723,-500.0,0.0002858,2]
[312842257,1706335845733,-159.0768455,0.0002858,2]
[312842258,1706335845744,-522.61405645,0.0002858,2]
[312842259,1706335845754,-500.0,0.0002858,2]
[312842260,1706335845763,-219.2141735,0.0002858,2]
[312842261,1706335845775,-280.7858265,0.0002858,2]
[312842262,1706335845786,-500.0,0.0002858,2]
[312842263,1706335845795,-500.0,0.0002858,2]
[312842264,1706335845804,-500.0,0.0002858,2]
[312842265,1706335845814,-195.63731612,0.0002858,2]
[312842266,1706335845824,-310.84311942,0.0002858,2]
[312842267,1706335845836,-189.15688058,0.0002858,2]
[312842268,1706335845846,-500.0,0.0002858,2]
[312842269,1706335845855,-500.0,0.0002858,2]
[312842270,1706335845865,-500.0,0.0002858,2]
[312842271,1706335845875,-500.0,0.0002858,2]
[312842272,1706335845884,-500.0,0.0002858,2]
[312842273,1706335845894,-264.14598839,0.0002858,2]
[312842274,1706335845906,-14.97936496,0.0002858,2]
[312842275,1706335845917,-422.60886858,0.0002858,2]
[312842276,1706335845927,-500.0,0.0002858,2]
[312842277,1706335845937,-954.81836239,0.00030136,2]
[312842278,1706335845946,-500.0,0.00030136,2]
[312842279,1706335845956,-6498.30138076,0.00030136,2]
[312842280,1706335846895,-742.1289388,0.00025263,2]
[312842281,1706335846905,-2034.77239924,0.00030136,2]
[312842282,1706335846914,-500.0,0.00030136,2]
[312842283,1706335846924,-5582.79803362,0.00030136,2]
[312842285,1706336321924,200.0,0.00023096,7]
[312842295,1706336888222,380.0,0.00015,2]
[312842301,1706336976573,260.92970133,0.00015,2]
[312842302,1706336992578,260.92970133,0.00015,2]
[312842303,1706337008576,260.92970133,0.00015,2]
[312842305,1706337030578,260.92970133,0.00015,2]
[312842349,1706337038372,-742.1289388,0.00019987,2]
[312842351,1706337038381,-3921.59583547,0.00019988,2]
[312842353,1706337038390,-2003.13525957,0.00019989,2]
[312842355,1706337038399,-300.0,0.0002,2]
[312842357,1706337038408,-681.16510115,0.0002,2]
[312842359,1706337038417,-284.30857523,0.0002,2]
[312842361,1706337038427,-327.61566675,0.00022,2]
[312842363,1706337038436,-303.48339143,0.000227,2]
[312842365,1706337038445,-250.3795459,0.00023096,2]
[312842367,1706337038455,-851.06760342,0.00025,2]
[312842369,1706337038465,-4727.98807036,0.00025514,2]
[312842371,1706337038474,-166.063049,0.00025768,2]
[312842373,1706337038483,-167.898325,0.00026072,2]
[312842375,1706337038492,-290.6944281,0.00027,2]
[312842377,1706337038501,-167.898325,0.00027849,2]
[312842379,1706337038510,-401.86775842,0.000284,2]
[312842381,1706337038519,-155.00709482,0.00028986,2]
[312842383,1706337038529,-158.32858575,0.00029,2]
[312842385,1706337038540,-1933.42796518,0.00029,2]
[312842387,1706337038549,-167.898325,0.00029626,2]
[312842389,1706337038558,-152.82367298,0.00029929,4]
[312842391,1706337038567,-179.66065682,0.0003,4]
[312842393,1706337038576,-155.18643422,0.0003,2]
[312842395,1706337038585,-195.57103754,0.0003,2]
[312842397,1706337038594,-689.09430435,0.00030006,4]
[312842399,1706337038603,-200.27809185,0.00030007,4]
[312842401,1706337038612,-109173.57396088,0.00030017,4]
[312842403,1706337038621,-155.17595828,0.00030029,4]
[312842405,1706337038631,-632.89004174,0.00030029,2]
[312842407,1706337038641,-2828.63593294,0.00030029,4]
[312842409,1706337038650,-155.94086993,0.0003003,4]
[312842411,1706337038660,-175.89663083,0.00030031,4]
[312842413,1706337038668,-625.15059201,0.00030032,4]
[312842415,1706337038678,-276000.0,0.00030034,2]
[312842417,1706337038687,-151.50000152,0.00030076,2]
[312842418,1706337038696,-4171.00186969,0.00030131,2]
[312842420,1706337038705,-1595.60431822,0.00030132,4]
[312842422,1706337038714,-4122.7670591,0.00030132,4]
[312842424,1706337038724,-2209.56270527,0.00030132,2]
[312842426,1706337038733,-10862.92009599,0.00030133,2]
[312842429,1706337038745,-859.2625072,0.00030133,2]
[312842431,1706337038754,-208.59620441,0.00030134,4]
[312842433,1706337038763,-2841.43797795,0.00030134,4]
[312842435,1706337038773,-6293.55283332,0.00030134,4]
[312842617,1706337047973,982.98644277,0.00015,2]
[312842619,1706337113092,260.92970133,0.00015,2]
[312842620,1706337131102,260.92970133,0.00015,2]
[312842621,1706337151239,395.65156246,0.00015,2]
[312842622,1706337422825,518.3223066,0.00015,2]
[312842623,1706337464571,154.98450155,0.00015,2]
[312842624,1706337480556,202.54492303,0.00015,2]
[312842626,1706337727378,260.92970133,0.00015,2]
[312842627,1706337747183,239.8950613,0.00015,2]
[312842628,1706337917217,260.92970133,0.00015,2]
[312842629,1706337939203,239.8950613,0.00015,2]
[312842675,1706338231976,-154.98450155,0.00018999,2]
[312842676,1706338231986,-1395.55059269,0.00019,2]
[312842677,1706338231995,-1583.7528565,0.00019,2]
[312842678,1706338232005,-1808.09027676,0.00019999,2]
[312842679,1706338232014,-300.0,0.0002,2]
[312842680,1706338232023,-188.67079758,0.0002,2]
[312842681,1706338232033,-331.078,0.00021918,3]
[312842682,1706338232042,-327.61566675,0.00022318,2]
[312842683,1706338232051,-3535.52810881,0.00022319,2]
[312842684,1706338232064,-1395.56796661,0.00022319,2]
[312842685,1706338232078,-16632.23845768,0.00022319,2]
[312842686,1706338232088,-168.5141544,0.00022823,2]
[312842687,1706338232097,-9947.92180076,0.00023,2]
[312842688,1706338232106,-1416.67721386,0.00023,2]
[312842689,1706338232117,-500.0,0.00023288,3]
[312842690,1706338232126,-200.0,0.00024549,7]
[312842691,1706338232135,-851.06760342,0.00025,2]
[312842692,1706338232144,-280.0,0.00027004,15]
[312842693,1706338232153,-183.208202,0.00028523,2]
[312842694,1706338232162,-2264.34,0.00028545,3]
[312842695,1706338232171,-1886.95,0.00028545,3]
[312842696,1706338232180,-2801.18464062,0.00028553,2]
[312842697,1706338232191,-426.38170713,0.00028554,2]
[312842698,1706338232200,-19616.20625012,0.00028555,5]
[312842710,1706338238098,-10202.84952288,0.00028555,5]
[312842715,1706338238217,-595.45090393,0.00028554,2]
[312842717,1706338238228,-20180.944227,0.00028555,5]
[312842719,1706338238237,-290.6944281,0.00028627,2]
[312842720,1706338238247,-632.66866746,0.00029313,2]
[312842721,1706338238256,-354.0,0.00029705,15]
[312842722,1706338238265,-2373.62501968,0.0003,2]
[312842723,1706338238274,-316.08860594,0.00030033,3]
[312842724,1706338238283,-4122.7670591,0.00030034,4]
[312842725,1706338238292,-4171.00186969,0.00030034,2]
[312842726,1706338238301,-10246.98297599,0.00030035,4]
[312842727,1706338238310,-24110.20825782,0.00030036,2]
[312842728,1706338238321,-270.11563843,0.00030036,2]
[312842729,1706338238331,-17306.01276491,0.00030036,2]
[312843086,1706339432154,-181.11768672,0.00022494,2]
[312843087,1706339432261,-1205.39351784,0.00022495,2]
[312843088,1706339432271,-327.61566675,0.00022496,2]
[312843089,1706339432280,-2042.20085113,0.00022525,2]
[312843090,1706339432289,-457.55669349,0.00025297,2]
[312843107,1706339438825,-2908.5811352,0.00025297,2]
[312843109,1706339438835,-167.898325,0.00025904,2]
[312843111,1706339438844,-241.485214,0.00026,2]
[312843113,1706339438853,-155.00709482,0.00027499,2]
[312843115,1706339438862,-1901.44944296,0.000275,2]
[312843117,1706339438871,-224.84714308,0.00028,7]
[312843119,1706339438879,-4017.99473319,0.00028522,2]
[312843120,1706339438888,-471.05101678,0.00028523,2]
[312843122,1706339438898,-2105.3133158,0.00028523,2]
[312843124,1706339438908,-81256.3314766,0.00028524,2]
[312843126,1706339438917,-50000.0,0.00028525,5]
[312843128,1706339438926,-154.98450155,0.00029,2]
[312843130,1706339438934,-1933.42796518,0.00029,2]
[312843132,1706339438943,-620.03325525,0.00029405,2]
[312843134,1706339438953,-3122.86887342,0.000295,30]
[312843136,1706339438963,-175.89663083,0.00029898,2]
[312843138,1706339438973,-200.27809185,0.00029898,2]
[312843140,1706339438983,-155.94086993,0.00029899,2]
[312843141,1706339438993,-155.17595828,0.00029899,2]
[312843143,1706339439002,-780.0886168,0.00029899,2]
[312843145,1706339439011,-156639.36047173,0.000299,2]
[312843147,1706339439021,-151.50000152,0.00029976,2]
[312843149,1706339439031,-500.0,0.00029999,2]
[312843151,1706339439040,-355.0708129,0.00029999,2]
[312843153,1706339439049,-172.73238116,0.00029999,2]
[312843155,1706339439059,-158.06765206,0.00029999,2]
[312843157,1706339439067,-167.04429254,0.0003,2]
[312843158,1706339439079,-6205.88852965,0.0003,2]
[312843160,1706339439089,-214721.8730404,0.0003,30]
[312843162,1706339439098,-155.18643422,0.0003,2]
[312843164,1706339439107,-689.09430435,0.0003,4]
[312843166,1706339439117,-154.98450155,0.0003,4]
[312843168,1706339439128,-195.57103754,0.0003,2]
[312843170,1706339439137,-130235.50188057,0.0003,4]
[312843172,1706339439146,-2373.62501968,0.0003,2]
[312843174,1706339439156,-1601.67590148,0.00030024,4]
[312843176,1706339439168,-251.49196668,0.00030025,4]
[312843178,1706339439177,-1416.67721386,0.00030034,4]
[312843180,1706339439187,-626.55596391,0.00030034,4]
[312843182,1706339439195,-155.00001712,0.00030034,4]
[312843184,1706339439204,-11722.18260319,0.00030035,2]
[312843186,1706339439214,-4292.55674097,0.00030036,4]
[312843188,1706339439223,-408.1017874,0.00030036,4]
[312843190,1706339439232,-1027.50463707,0.00030036,2]
[312843191,1706339439242,-2841.43797795,0.00030132,4]
[312843193,1706339439251,-208.59620441,0.00030132,4]
[312843195,1706339439261,-21936.82533037,0.00030133,4]
[312843197,1706339439270,-772.68003239,0.00030134,4]
[312843199,1706339439279,-200.30775623,0.00030134,4]
[312843201,1706339439288,-8492.98709119,0.00030134,4]
[312843203,1706339439298,-155.11769562,0.00030134,4]
[312843205,1706339439307,-233.67431653,0.00030134,4]
[312843207,1706339439316,-1202.54591632,0.00030134,4]
[312843209,1706339439325,-355.61870581,0.00030134,4]
[312843211,1706339439334,-4727.98807036,0.00030134,3]
[312843212,1706339439343,-685.78604026,0.00030134,4]
[312843214,1706339439352,-325.08382029,0.00030134,4]
[312843216,1706339439361,-4305.11624212,0.00030134,4]
[312843218,1706339439370,-165.29707595,0.00030134,4]
[312843220,1706339439379,-4557.45872214,0.00030135,2]
[312843222,1706339439389,-1848.03012919,0.00030135,2]
[312843224,1706339439398,-311.78878247,0.00030135,2]
[312843226,1706339439407,-500.0,0.00030135,2]
[312843228,1706339439416,-500.0,0.00030135,2]
[312843230,1706339439425,-373.73938568,0.00030135,2]
[312843232,1706339439434,-500.0,0.00030135,2]
[312843233,1706339439443,-321.69028241,0.00030135,2]
[312843235,1706339439452,-500.0,0.00030135,2]
[312843237,1706339439461,-500.0,0.00030135,2]
[312843247,1706339439547,-500.0,0.00030135,2]
[312843249,1706339439557,-500.0,0.00030135,2]
[312843250,1706339439566,-500.0,0.00030135,2]
[312843252,1706339439574,-414.04171934,0.00030135,2]
[312843254,1706339439587,-85.95828066,0.00030135,2]
[312843256,1706339439596,-500.0,0.00030135,2]
[312843258,1706339439606,-532.71939461,0.00030135,2]
[312843260,1706339439615,-500.0,0.00030135,2]
[312843262,1706339439624,-500.0,0.00030135,2]
[312843264,1706339439633,-297.72143804,0.00030135,2]
[312843265,1706339439643,-500.0,0.00030135,2]
[312843266,1706339439652,-500.0,0.00030135,2]
[312843267,1706339439661,-500.0,0.00030135,2]
[312843268,1706339439670,-500.0,0.00030135,2]
[312843269,1706339439679,-500.0,0.00030135,2]
[312843270,1706339439687,-500.0,0.00030135,2]
[312843271,1706339439696,-500.0,0.00030135,2]
[312843272,1706339439705,-500.0,0.00030135,2]
[312843273,1706339439714,-500.0,0.00030135,2]
[312843274,1706339439725,-500.0,0.00030135,2]
[312843275,1706339439734,-500.0,0.00030135,2]
[312843276,1706339439743,-500.0,0.00030135,2]
[312843277,1706339439752,-500.0,0.00030135,2]
[312843278,1706339439762,-500.0,0.00030135,2]
[312843279,1706339439771,-500.0,0.00030135,2]
[312843280,1706339439780,-286.45040957,0.00030135,2]
[312843412,1706339447506,-183.208202,0.00028966,2]
[312843413,1706339447516,-221.70976437,0.00030126,3]
[312843479,1706340634065,-181.11768672,0.00024312,2]
[312843481,1706340634075,-364.79008454,0.00024313,2]
[312843510,1706340639732,-639.70451366,0.00024313,2]
[312843512,1706340639742,-246.112991,0.00024314,2]
[312843514,1706340639751,-152.82367298,0.00025212,2]
[312843516,1706340639760,-527.32109202,0.00025301,2]
[312843519,1706340639773,-9420.60070874,0.00025301,2]
[312843520,1706340639783,-4727.98807036,0.00025302,2]
[312843521,1706340639792,-81256.3314766,0.00025302,2]
[312843522,1706340639801,-295.12770733,0.0002531,2]
[312843523,1706340639812,-3921.59583547,0.0002531,2]
[312843524,1706340639821,-471.05101678,0.00025323,2]
[312843525,1706340639832,-2105.3133158,0.00025335,2]
[312843526,1706340639843,-275.41863263,0.00025342,2]
[312843527,1706340639853,-155.00709482,0.00025418,2]
[312843528,1706340639865,-684.7498584,0.0002599,2]
[312843529,1706340639877,-165.261124,0.00026447,2]
[312843530,1706340639888,-620.66518043,0.00026511,2]
[312843531,1706340639897,-290.6944281,0.00027,2]
[312843532,1706340639906,-620.03325902,0.00027836,2]
[312843533,1706340639917,-200.0,0.00027855,15]
[312843534,1706340639926,-716.53787654,0.00027881,2]
[312843535,1706340639936,-310.00003424,0.00027881,2]
[312843536,1706340639947,-772.68003239,0.0002789,2]
[312843537,1706340639957,-233.67431653,0.0002789,2]
[312843538,1706340639966,-208.59620441,0.0002789,2]
[312843539,1706340639976,-626.55596391,0.0002789,2]
[312843540,1706340639986,-1202.54591632,0.0002789,2]
[312843541,1706340639996,-2841.43797795,0.0002789,2]
[312843542,1706340640006,-8492.98709119,0.0002789,2]
[312843543,1706340640018,-780.0886168,0.0002789,2]
[312843544,1706340640029,-175.89663083,0.0002789,2]
[312843545,1706340640038,-155.17595828,0.0002789,2]
[312843546,1706340640046,-200.27809185,0.0002789,2]
[312843547,1706340640055,-4017.99473319,0.0002789,2]
[312843548,1706340640065,-200.30775623,0.00027891,2]
[312843549,1706340640074,-1416.67721386,0.00027891,2]
[312843550,1706340640083,-50000.0,0.00027892,5]
[312843551,1706340640092,-50000.0,0.00027892,5]
[312843552,1706340640101,-50000.0,0.00027892,4]
[312843553,1706340640110,-556.2457431,0.00028,2]
[312843554,1706340640118,-50000.0,0.00028515,5]
[312843555,1706340640127,-265.58036127,0.00028998,2]
[312843556,1706340640136,-158.32858575,0.00029,2]
[312843557,1706340640146,-1933.42796518,0.00029,2]
[312843558,1706340640155,-620.00166295,0.00029228,2]
[312843559,1706340640166,-3122.86887342,0.000295,30]
[312843560,1706340640177,-2062.76579212,0.0003,2]
[312843561,1706340640187,-155.0,0.0003,2]
[312843562,1706340640196,-195.57103754,0.0003,2]
[312843563,1706340640205,-689.09430435,0.0003,4]
[312843564,1706340640214,-154.98450155,0.0003,4]
[312843565,1706340640223,-130235.50188057,0.0003,4]
[312843566,1706340640232,-781.5559177,0.0003,2]
[312843567,1706340640241,-30248.16053209,0.0003001,45]
[312843568,1706340640250,-234.38710623,0.00030034,3]
[312843569,1706340640259,-4557.45872214,0.00030034,2]
[312843570,1706340640269,-325.08382029,0.00030034,4]
[312843571,1706340640278,-251.49196668,0.00030034,4]
[312843572,1706340640287,-1601.67590148,0.00030034,4]
[312843573,1706340640296,-155.11769562,0.00030034,4]
[312843574,1706340640305,-1848.03012919,0.00030035,2]
[312843575,1706340640315,-500.0,0.00030035,2]
[312843576,1706340640324,-172.73238116,0.00030035,2]
[312843577,1706340640333,-355.0708129,0.00030035,2]
[312843578,1706340640343,-158.06765206,0.00030035,2]
[312843579,1706340640352,-276000.0,0.00030036,2]
[312843580,1706340640361,-417.8948152,0.00030036,3]
[312843581,1706340640370,-151.0,0.00030036,2]
[312843582,1706340640379,-151.0,0.00030036,2]
[312843583,1706340640388,-151.0,0.00030036,2]
[312843584,1706340640397,-151.0,0.00030036,2]
[312843585,1706340640406,-481.997163,0.00030036,2]
[312843586,1706340640415,-481.997163,0.00030036,2]
[312843587,1706340640425,-7376.891199,0.00030036,2]
[312843588,1706340640434,-7376.891199,0.00030036,2]
[312843589,1706340640443,-741.05148,0.00030036,2]
[312843590,1706340640454,-741.05148,0.00030036,2]
[312843591,1706340640465,-151.743959,0.00030036,2]
[312843592,1706340640474,-151.0,0.00030036,2]
[312843593,1706340640484,-151.50000152,0.00030066,2]
[312843594,1706340640495,-150.0,0.000301,2]
[312843595,1706340640504,-150.546721,0.000301,2]
[312843596,1706340640513,-245.548314,0.000301,2]
[312843597,1706340640523,-245.548314,0.000301,2]
[312843598,1706340640534,-1027.50463707,0.00030126,2]
[312843599,1706340640543,-4292.55674097,0.00030126,4]
[312843600,1706340640552,-165.29707595,0.00030126,4]
[312843601,1706340640562,-685.78604026,0.00030126,4]
[312843602,1706340640571,-408.1017874,0.00030126,4]
[312843603,1706340640581,-649.86107879,0.00030126,4]
[312843604,1706340640590,-190.620438,0.00030131,2]
[312843605,1706340640600,-190.620438,0.00030131,2]
[312843606,1706340640611,-450.0,0.00030131,2]
[312843607,1706340640621,-450.0,0.00030131,2]
[312843608,1706340640632,-151.0,0.00030131,2]
[312843609,1706340640642,-294.91698221,0.00030134,4]
[312843610,1706340640651,-500.0,0.00030135,2]
[312843611,1706340640660,-500.0,0.00030135,2]
[312843612,1706340640669,-500.0,0.00030135,2]
[312843613,1706340640678,-373.73938568,0.00030135,2]
[312843614,1706340640687,-500.0,0.00030135,2]
[312843615,1706340640696,-500.0,0.00030135,2]
[312843616,1706340640705,-500.0,0.00030135,2]